[Event "2026 Biel Blitz Open"]
[Site "Biel, CH"]
[Date "2026.07.19"]
[Round "8"]
[White "Safarli, Eltaj"]
[Black "Ling, Chenxuan"]
[Result "0-1"]
[Board "5"]
[TimeControl "180+2"]
[WhiteFideId "13402129"]
[BlackFideId "30983118"]
[WhiteElo "2619"]
[BlackElo "2235"]
[WhiteTitle "GM"]
[BlackTitle "CM"]
[WhiteClock "0:00:03"]
[BlackClock "0:00:16"]
[Variant "Standard"]
[EndDate "2026.07.19"]
[EndTime "14:19:26"]

1. e4 {[%clk 0:03:03]}  e6 {[%clk 0:03:03]} 2. d4 {[%clk 0:03:04]}  d5 {[%clk 0:03:04]} 3. Nd2 {[%clk 0:03:05]}  Nf6 {[%clk 0:03:05]}
4. e5 {[%clk 0:03:06]}  Nfd7 {[%clk 0:03:05]} 5. Bd3 {[%clk 0:03:07]}  c5 {[%clk 0:03:06]} 6. c3 {[%clk 0:03:08]}  Nc6 {[%clk 0:03:06]}
7. Ne2 {[%clk 0:03:09]}  cxd4 {[%clk 0:03:05]} 8. cxd4 {[%clk 0:03:10]}  f6 {[%clk 0:03:06]} 9. exf6 {[%clk 0:03:11]}  Nxf6 {[%clk 0:03:06]}
10. Nf3 {[%clk 0:03:12]}  Bd6 {[%clk 0:03:07]} 11. O-O {[%clk 0:03:12]}  O-O {[%clk 0:03:04]} 12. Bf4 {[%clk 0:03:13]}  Bxf4 {[%clk 0:03:05]}
13. Nxf4 {[%clk 0:03:14]}  Ne4 {[%clk 0:03:06]} 14. Qc1 {[%clk 0:03:12]}  Ng5 {[%clk 0:03:01]} 15. Nxg5 {[%clk 0:03:12]}  Qxg5 {[%clk 0:03:02]}
16. Ne2 {[%clk 0:03:13]}  Qf6 {[%clk 0:02:58]} 17. Qe3 {[%clk 0:03:11]}  Bd7 {[%clk 0:02:42]} 18. Bb5 {[%clk 0:03:11]}  Rae8 {[%clk 0:02:31]}
19. f4 {[%clk 0:02:44]}  a6 {[%clk 0:02:30]} 20. Bxc6 {[%clk 0:02:44]}  Bxc6 {[%clk 0:02:31]} 21. Rf2 {[%clk 0:02:38]}  Rc8 {[%clk 0:02:25]}
22. Re1 {[%clk 0:02:34]}  Bd7 {[%clk 0:02:25]} 23. Nc3 {[%clk 0:01:58]}  Rc4 {[%clk 0:02:23]} 24. Rd1 {[%clk 0:01:58]}  Rfc8 {[%clk 0:02:20]}
25. f5 {[%clk 0:01:58]}  b5 {[%clk 0:01:52]} 26. Re1 {[%clk 0:01:34]}  Qxd4 {[%clk 0:01:37]} 27. Qxd4 {[%clk 0:01:35]}  Rxd4 {[%clk 0:01:37]}
28. fxe6 {[%clk 0:01:36]}  Be8 {[%clk 0:01:37]} 29. Re5 {[%clk 0:01:28]}  h6 {[%clk 0:01:05]} 30. h3 {[%clk 0:00:51]}  Bc6 {[%clk 0:00:57]}
31. e7 {[%clk 0:00:53]}  Re8 {[%clk 0:00:50]} 32. Re6 {[%clk 0:00:43]}  Bd7 {[%clk 0:00:51]} 33. Rd6 {[%clk 0:00:43]}  Rxe7 {[%clk 0:00:45]}
34. Nxd5 {[%clk 0:00:44]}  Re1+ {[%clk 0:00:46]} 35. Kh2 {[%clk 0:00:45]}  Red1 {[%clk 0:00:44]} 36. Ne7+ {[%clk 0:00:36]}  Kh7 {[%clk 0:00:44]}
37. Rxa6 {[%clk 0:00:37]}  R1d2 {[%clk 0:00:42]} 38. Rxd2 {[%clk 0:00:33]}  Rxd2 {[%clk 0:00:44]} 39. b3 {[%clk 0:00:33]}  b4 {[%clk 0:00:37]}
40. Rb6 {[%clk 0:00:23]}  Rxa2 {[%clk 0:00:35]} 41. Rxb4 {[%clk 0:00:25]}  Rb2 {[%clk 0:00:35]} 42. Rd4 {[%clk 0:00:18]}  Bb5 {[%clk 0:00:34]}
43. b4 {[%clk 0:00:13]}  Bf1 {[%clk 0:00:35]} 44. Rg4 {[%clk 0:00:14]}  Be2 {[%clk 0:00:29]} 45. Rf4 {[%clk 0:00:13]}  Bh5 {[%clk 0:00:18]}
46. Nc6 {[%clk 0:00:10]}  g5 {[%clk 0:00:18]} 47. Rf1 {[%clk 0:00:05]}  Bg6 {[%clk 0:00:16]} 48. Re1 {[%clk 0:00:05]}  Bf7 {[%clk 0:00:14]}
49. Re5 {[%clk 0:00:05]}  Bc4 {[%clk 0:00:09]} 50. Re7+ {[%clk 0:00:05]}  Kg8 {[%clk 0:00:15]} 51. Re8+ {[%clk 0:00:04]}  Kg7 {[%clk 0:00:16]}
52. Re7+ {[%clk 0:00:05]}  Kf6 {[%clk 0:00:16]} 53. Re8 {[%clk 0:00:03]}  Bd5 {[%clk 0:00:16]} 54. Ne7 {[%clk 0:00:00]}  Ke5 {[%clk 0:00:13]} 0-1

[Event "2026 Biel Blitz Open"]
[Site "Biel, CH"]
[Date "2026.07.19"]
[Round "8"]
[White "Gloeckler, Christian"]
[Black "Gautier, Anand"]
[Result "1/2-1/2"]
[Board "6"]
[TimeControl "180+2"]
[WhiteFideId "34608966"]
[BlackFideId "26010186"]
[WhiteElo "2513"]
[BlackElo "2198"]
[WhiteTitle "IM"]
[BlackTitle "FM"]
[WhiteClock "0:00:10"]
[BlackClock "0:00:09"]
[Variant "Standard"]
[EndDate "2026.07.19"]
[EndTime "14:19:40"]

1. e4 {[%clk 0:03:03]}  c5 {[%clk 0:03:04]} 2. Nf3 {[%clk 0:03:04]}  d6 {[%clk 0:03:05]} 3. d4 {[%clk 0:03:05]}  cxd4 {[%clk 0:03:06]}
4. Nxd4 {[%clk 0:03:06]}  Nf6 {[%clk 0:03:08]} 5. Nc3 {[%clk 0:03:07]}  a6 {[%clk 0:03:09]} 6. Be3 {[%clk 0:03:07]}  e6 {[%clk 0:03:08]}
7. Be2 {[%clk 0:03:07]}  Qc7 {[%clk 0:03:04]} 8. g4 {[%clk 0:03:01]}  b5 {[%clk 0:03:04]} 9. g5 {[%clk 0:03:01]}  Nfd7 {[%clk 0:03:05]}
10. a3 {[%clk 0:02:55]}  Bb7 {[%clk 0:03:06]} 11. f4 {[%clk 0:02:55]}  Nc6 {[%clk 0:03:07]} 12. f5 {[%clk 0:02:52]}  Nxd4 {[%clk 0:02:53]}
13. Qxd4 {[%clk 0:02:52]}  Ne5 {[%clk 0:02:27]} 14. Rf1 {[%clk 0:02:37]}  Be7 {[%clk 0:02:21]} 15. f6 {[%clk 0:02:36]}  gxf6 {[%clk 0:02:08]}
16. gxf6 {[%clk 0:02:37]}  Bf8 {[%clk 0:02:09]} 17. O-O-O {[%clk 0:02:34]}  O-O-O {[%clk 0:02:07]} 18. Bf4 {[%clk 0:02:12]}  h5 {[%clk 0:01:58]}
19. Bxb5 {[%clk 0:01:59]}  axb5 {[%clk 0:01:58]} 20. Nxb5 {[%clk 0:02:01]}  Qa5 {[%clk 0:01:53]} 21. a4 {[%clk 0:01:42]}  Bc6 {[%clk 0:01:14]}
22. Na7+ {[%clk 0:01:17]}  Kb7 {[%clk 0:01:07]} 23. Nxc6 {[%clk 0:01:17]}  Nxc6 {[%clk 0:01:08]} 24. Qc4 {[%clk 0:01:18]}  Bh6 {[%clk 0:00:59]}
25. Kb1 {[%clk 0:01:11]}  Bxf4 {[%clk 0:00:59]} 26. Rxf4 {[%clk 0:01:12]}  Rhg8 {[%clk 0:00:50]} 27. Rf3 {[%clk 0:01:08]}  Rg5 {[%clk 0:00:42]}
28. Rb3+ {[%clk 0:01:06]}  Kc7 {[%clk 0:00:34]} 29. Rb5 {[%clk 0:01:08]}  Rc5 {[%clk 0:00:28]} 30. Qb3 {[%clk 0:00:55]}  Rxb5 {[%clk 0:00:29]}
31. axb5 {[%clk 0:00:50]}  Ne5 {[%clk 0:00:28]} 32. c4 {[%clk 0:00:42]}  Ra8 {[%clk 0:00:27]} 33. Rd4 {[%clk 0:00:13]}  Qa1+ {[%clk 0:00:20]}
34. Kc2 {[%clk 0:00:14]}  Qa4 {[%clk 0:00:18]} 35. Qxa4 {[%clk 0:00:10]}  Rxa4 {[%clk 0:00:20]} 36. Kb3 {[%clk 0:00:10]}  Ra1 {[%clk 0:00:19]}
37. Kb4 {[%clk 0:00:10]}  Rb1 {[%clk 0:00:10]} 38. b3 {[%clk 0:00:08]}  Nd7 {[%clk 0:00:11]} 39. Kc3 {[%clk 0:00:06]}  Rh1 {[%clk 0:00:11]}
40. b4 {[%clk 0:00:05]}  Rxh2 {[%clk 0:00:11]} 41. e5 {[%clk 0:00:04]}  Nxe5 {[%clk 0:00:10]} 42. c5 {[%clk 0:00:05]}  Rh3+ {[%clk 0:00:08]}
43. Kc2 {[%clk 0:00:07]}  dxc5 {[%clk 0:00:07]} 44. bxc5 {[%clk 0:00:08]}  Ra3 {[%clk 0:00:04]} 45. Kb2 {[%clk 0:00:03]}  Rd3 {[%clk 0:00:06]}
46. Ra4 {[%clk 0:00:03]}  Nd7 {[%clk 0:00:06]} 47. c6 {[%clk 0:00:03]}  Nc5 {[%clk 0:00:04]} 48. Ra7+ {[%clk 0:00:05]}  Kb8 {[%clk 0:00:04]}
49. Rxf7 {[%clk 0:00:04]}  Rb3+ {[%clk 0:00:06]} 50. Kc2 {[%clk 0:00:04]}  Rxb5 {[%clk 0:00:06]} 51. Kc3 {[%clk 0:00:05]}  Ne4+ {[%clk 0:00:07]}
52. Kd4 {[%clk 0:00:07]}  Nxf6 {[%clk 0:00:06]} 53. Rxf6 {[%clk 0:00:08]}  Kc7 {[%clk 0:00:06]} 54. Rxe6 {[%clk 0:00:08]}  h4 {[%clk 0:00:06]}
55. Rh6 {[%clk 0:00:09]}  h3 {[%clk 0:00:07]} 56. Rxh3 {[%clk 0:00:10]}  Kxc6 {[%clk 0:00:09]} 57. Ke4 {[%clk 0:00:06]} 1/2-1/2

[Event "2026 Biel Blitz Open"]
[Site "Biel, CH"]
[Date "2026.07.19"]
[Round "8"]
[White "Elmi, Saad Abobaker"]
[Black "Amonatov, Farrukh"]
[Result "1-0"]
[Board "7"]
[TimeControl "180+2"]
[WhiteFideId "1553259"]
[BlackFideId "14700077"]
[WhiteElo "2409"]
[BlackElo "2585"]
[WhiteTitle "IM"]
[BlackTitle "GM"]
[WhiteClock "0:00:12"]
[BlackClock "0:00:11"]
[Variant "Standard"]
[EndDate "2026.07.19"]
[EndTime "14:19:13"]

1. e4 {[%clk 0:03:03]}  c5 {[%clk 0:03:04]} 2. Nc3 {[%clk 0:03:04]}  d6 {[%clk 0:03:05]} 3. d4 {[%clk 0:03:05]}  cxd4 {[%clk 0:03:06]}
4. Qxd4 {[%clk 0:03:06]}  Nc6 {[%clk 0:03:07]} 5. Qd2 {[%clk 0:03:07]}  g6 {[%clk 0:03:08]} 6. b3 {[%clk 0:03:08]}  Bh6 {[%clk 0:03:09]}
7. f4 {[%clk 0:03:09]}  Nf6 {[%clk 0:03:10]} 8. Bb2 {[%clk 0:03:10]}  O-O {[%clk 0:03:10]} 9. O-O-O {[%clk 0:03:10]}  a5 {[%clk 0:03:11]}
10. a4 {[%clk 0:03:07]}  Bg4 {[%clk 0:03:09]} 11. Be2 {[%clk 0:03:05]}  Nb4 {[%clk 0:02:59]} 12. Bxg4 {[%clk 0:02:59]}  Nxg4 {[%clk 0:03:00]}
13. h3 {[%clk 0:02:55]}  Nf6 {[%clk 0:02:59]} 14. g4 {[%clk 0:02:48]}  Bg7 {[%clk 0:02:59]} 15. Kb1 {[%clk 0:02:41]}  Rc8 {[%clk 0:02:59]}
16. Re1 {[%clk 0:02:26]}  Qc7 {[%clk 0:02:57]} 17. Nf3 {[%clk 0:02:17]}  Rfd8 {[%clk 0:02:18]} 18. Nd4 {[%clk 0:02:09]}  e5 {[%clk 0:01:59]}
19. Ndb5 {[%clk 0:02:05]}  Qb6 {[%clk 0:01:52]} 20. g5 {[%clk 0:01:57]}  Nh5 {[%clk 0:01:53]} 21. f5 {[%clk 0:01:58]}  Nf4 {[%clk 0:01:46]}
22. f6 {[%clk 0:01:51]}  Bf8 {[%clk 0:01:47]} 23. Ba3 {[%clk 0:01:40]}  d5 {[%clk 0:01:48]} 24. Bxb4 {[%clk 0:01:14]}  Bxb4 {[%clk 0:01:46]}
25. exd5 {[%clk 0:01:13]}  Qc5 {[%clk 0:01:19]} 26. Kb2 {[%clk 0:00:48]}  Nxd5 {[%clk 0:00:46]} 27. Rxe5 {[%clk 0:00:39]}  Qxb5 {[%clk 0:00:46]}
28. Nxd5 {[%clk 0:00:33]}  Bxd2 {[%clk 0:00:20]} 29. axb5 {[%clk 0:00:30]}  Kf8 {[%clk 0:00:21]} 30. c4 {[%clk 0:00:28]}  a4 {[%clk 0:00:18]}
31. h4 {[%clk 0:00:26]}  h6 {[%clk 0:00:12]} 32. Rh2 {[%clk 0:00:21]}  Ba5 {[%clk 0:00:12]} 33. Rhe2 {[%clk 0:00:17]}  axb3 {[%clk 0:00:09]}
34. Kxb3 {[%clk 0:00:18]}  Rd7 {[%clk 0:00:10]} 35. Re7 {[%clk 0:00:18]}  Rcd8 {[%clk 0:00:10]} 36. Rxd7 {[%clk 0:00:14]}  Rxd7 {[%clk 0:00:12]}
37. b6 {[%clk 0:00:14]}  hxg5 {[%clk 0:00:10]} 38. hxg5 {[%clk 0:00:15]}  Rd6 {[%clk 0:00:12]} 39. Rh2 {[%clk 0:00:11]}  Ke8 {[%clk 0:00:12]}
40. Rh8+ {[%clk 0:00:09]}  Kd7 {[%clk 0:00:13]} 41. Rb8 {[%clk 0:00:08]}  Re6 {[%clk 0:00:07]} 42. Rxb7+ {[%clk 0:00:08]}  Kc6 {[%clk 0:00:07]}
43. Rxf7 {[%clk 0:00:07]}  Bxb6 {[%clk 0:00:06]} 44. Nxb6 {[%clk 0:00:08]}  Kxb6 {[%clk 0:00:08]} 45. Re7 {[%clk 0:00:08]}  Rd6 {[%clk 0:00:08]}
46. f7 {[%clk 0:00:09]}  Rd3+ {[%clk 0:00:10]} 47. Kb4 {[%clk 0:00:10]}  Rf3 {[%clk 0:00:11]} 48. Re6+ {[%clk 0:00:12]} 1-0

[Event "2026 Biel Blitz Open"]
[Site "Biel, CH"]
[Date "2026.07.19"]
[Round "8"]
[White "Kozak, Adam"]
[Black "Matsumura, Cocoro"]
[Result "1-0"]
[Board "8"]
[TimeControl "180+2"]
[WhiteFideId "753246"]
[BlackFideId "36087114"]
[WhiteElo "2537"]
[BlackElo "2131"]
[WhiteTitle "GM"]
[BlackTitle "CM"]
[WhiteClock "0:00:14"]
[BlackClock "0:00:05"]
[Variant "Standard"]
[EndDate "2026.07.19"]
[EndTime "14:18:07"]

1. d4 {[%clk 0:03:02]}  d5 {[%clk 0:03:04]} 2. c4 {[%clk 0:03:03]}  e6 {[%clk 0:03:06]} 3. Nc3 {[%clk 0:03:03]}  Nf6 {[%clk 0:03:07]}
4. cxd5 {[%clk 0:03:04]}  exd5 {[%clk 0:03:08]} 5. Bg5 {[%clk 0:03:05]}  c6 {[%clk 0:03:10]} 6. e3 {[%clk 0:03:04]}  h6 {[%clk 0:03:11]}
7. Bf4 {[%clk 0:03:05]}  Bd6 {[%clk 0:03:11]} 8. Bxd6 {[%clk 0:03:06]}  Qxd6 {[%clk 0:03:12]} 9. Bd3 {[%clk 0:03:06]}  O-O {[%clk 0:03:12]}
10. Nge2 {[%clk 0:03:06]}  Re8 {[%clk 0:03:04]} 11. Qd2 {[%clk 0:03:07]}  Nbd7 {[%clk 0:03:00]} 12. f3 {[%clk 0:03:08]}  a5 {[%clk 0:02:44]}
13. e4 {[%clk 0:02:52]}  dxe4 {[%clk 0:02:15]} 14. fxe4 {[%clk 0:02:50]}  Qe7 {[%clk 0:02:08]} 15. e5 {[%clk 0:02:33]}  Nd5 {[%clk 0:02:09]}
16. O-O {[%clk 0:02:25]}  Nf8 {[%clk 0:02:06]} 17. Nxd5 {[%clk 0:02:22]}  cxd5 {[%clk 0:02:07]} 18. Nf4 {[%clk 0:02:19]}  Ne6 {[%clk 0:02:03]}
19. Nxd5 {[%clk 0:01:47]}  Qd8 {[%clk 0:01:40]} 20. Be4 {[%clk 0:01:44]}  Ng5 {[%clk 0:01:33]} 21. Qe3 {[%clk 0:01:15]}  Be6 {[%clk 0:01:12]}
22. Nf4 {[%clk 0:00:58]}  Nxe4 {[%clk 0:00:31]} 23. Qxe4 {[%clk 0:00:58]}  Bc4 {[%clk 0:00:31]} 24. Rf2 {[%clk 0:00:57]}  a4 {[%clk 0:00:26]}
25. a3 {[%clk 0:00:51]}  Rc8 {[%clk 0:00:24]} 26. h3 {[%clk 0:00:47]}  b5 {[%clk 0:00:23]} 27. Rd1 {[%clk 0:00:46]}  Bb3 {[%clk 0:00:23]}
28. Rdd2 {[%clk 0:00:42]}  Rc1+ {[%clk 0:00:23]} 29. Kh2 {[%clk 0:00:44]}  Qg5 {[%clk 0:00:20]} 30. Rf3 {[%clk 0:00:41]}  Rec8 {[%clk 0:00:17]}
31. Qe3 {[%clk 0:00:20]}  Rb1 {[%clk 0:00:15]} 32. Ne2 {[%clk 0:00:15]}  Qh4 {[%clk 0:00:05]} 33. Rg3 {[%clk 0:00:13]}  Re1 {[%clk 0:00:06]}
34. Qf2 {[%clk 0:00:13]}  Ra1 {[%clk 0:00:05]} 35. Rxg7+ {[%clk 0:00:14]} 1-0

[Event "2026 Biel Blitz Open"]
[Site "Biel, CH"]
[Date "2026.07.19"]
[Round "8"]
[White "Alexakis, Dimitris"]
[Black "Habibi, Ali"]
[Result "1/2-1/2"]
[Board "9"]
[TimeControl "180+2"]
[WhiteFideId "4277023"]
[BlackFideId "4604393"]
[WhiteElo "2459"]
[BlackElo "2116"]
[WhiteTitle "GM"]
[BlackTitle "IM"]
[WhiteClock "0:00:01"]
[BlackClock "0:00:35"]
[Variant "Standard"]
[EndDate "2026.07.19"]
[EndTime "14:27:27"]

1. e4 {[%clk 0:03:02]}  c5 {[%clk 0:03:02]} 2. Nf3 {[%clk 0:03:02]}  a6 {[%clk 0:03:02]} 3. Nc3 {[%clk 0:02:55]}  e6 {[%clk 0:03:04]}
4. d4 {[%clk 0:02:53]}  cxd4 {[%clk 0:03:05]} 5. Nxd4 {[%clk 0:02:54]}  Qc7 {[%clk 0:03:06]} 6. g3 {[%clk 0:02:50]}  d6 {[%clk 0:03:06]}
7. Bg2 {[%clk 0:02:51]}  Nf6 {[%clk 0:03:07]} 8. O-O {[%clk 0:02:51]}  Be7 {[%clk 0:03:08]} 9. a4 {[%clk 0:02:44]}  O-O {[%clk 0:03:06]}
10. a5 {[%clk 0:02:45]}  Nbd7 {[%clk 0:03:07]} 11. Nb3 {[%clk 0:02:34]}  Ne5 {[%clk 0:02:58]} 12. h3 {[%clk 0:02:15]}  Bd7 {[%clk 0:02:50]}
13. Kh1 {[%clk 0:02:14]}  Rfe8 {[%clk 0:02:35]} 14. g4 {[%clk 0:02:07]}  g6 {[%clk 0:02:29]} 15. Bh6 {[%clk 0:01:55]}  Nc4 {[%clk 0:02:29]}
16. Qc1 {[%clk 0:01:53]}  Rac8 {[%clk 0:02:27]} 17. Ne2 {[%clk 0:01:51]}  e5 {[%clk 0:02:12]} 18. Ng3 {[%clk 0:01:39]}  Bb5 {[%clk 0:02:11]}
19. Rd1 {[%clk 0:01:18]}  b6 {[%clk 0:01:40]} 20. c3 {[%clk 0:01:10]}  bxa5 {[%clk 0:01:38]} 21. Nd2 {[%clk 0:01:10]}  Nxd2 {[%clk 0:01:32]}
22. Qxd2 {[%clk 0:01:10]}  a4 {[%clk 0:01:28]} 23. Nf5 {[%clk 0:01:08]}  Bf8 {[%clk 0:01:03]} 24. Bxf8 {[%clk 0:00:59]}  Rxf8 {[%clk 0:01:01]}
25. Qg5 {[%clk 0:00:41]}  Ne8 {[%clk 0:00:57]} 26. Ne7+ {[%clk 0:00:39]}  Kg7 {[%clk 0:00:52]} 27. Nxc8 {[%clk 0:00:38]}  Qxc8 {[%clk 0:00:51]}
28. Rd2 {[%clk 0:00:37]}  f6 {[%clk 0:00:46]} 29. Qe3 {[%clk 0:00:38]}  Rf7 {[%clk 0:00:48]} 30. f4 {[%clk 0:00:38]}  Qc6 {[%clk 0:00:31]}
31. g5 {[%clk 0:00:22]}  exf4 {[%clk 0:00:32]} 32. Qxf4 {[%clk 0:00:22]}  fxg5 {[%clk 0:00:32]} 33. Qxg5 {[%clk 0:00:23]}  Qc5 {[%clk 0:00:34]}
34. Qxc5 {[%clk 0:00:17]}  dxc5 {[%clk 0:00:35]} 35. e5 {[%clk 0:00:18]}  Re7 {[%clk 0:00:35]} 36. Rd5 {[%clk 0:00:15]}  c4 {[%clk 0:00:35]}
37. Re1 {[%clk 0:00:12]}  Nc7 {[%clk 0:00:36]} 38. Rd6 {[%clk 0:00:13]}  Ne6 {[%clk 0:00:37]} 39. Bd5 {[%clk 0:00:12]}  Nf4 {[%clk 0:00:38]}
40. Bf3 {[%clk 0:00:06]}  Nxh3 {[%clk 0:00:38]} 41. Bc6 {[%clk 0:00:05]}  Nf2+ {[%clk 0:00:36]} 42. Kg1 {[%clk 0:00:05]}  Nd3 {[%clk 0:00:34]}
43. Re2 {[%clk 0:00:06]}  Rxe5 {[%clk 0:00:36]} 44. Rxe5 {[%clk 0:00:04]}  Nxe5 {[%clk 0:00:37]} 45. Bxb5 {[%clk 0:00:05]}  axb5 {[%clk 0:00:38]}
46. Rd5 {[%clk 0:00:06]}  Nd3 {[%clk 0:00:38]} 47. Rxb5 {[%clk 0:00:07]}  h5 {[%clk 0:00:39]} 48. Kg2 {[%clk 0:00:05]}  Kh6 {[%clk 0:00:38]}
49. Kf3 {[%clk 0:00:06]}  g5 {[%clk 0:00:40]} 50. Rb6+ {[%clk 0:00:06]}  Kg7 {[%clk 0:00:41]} 51. Ke4 {[%clk 0:00:07]}  g4 {[%clk 0:00:40]}
52. Kf5 {[%clk 0:00:08]}  Kf7 {[%clk 0:00:38]} 53. Rb7+ {[%clk 0:00:06]}  Ke8 {[%clk 0:00:39]} 54. Kg5 {[%clk 0:00:07]}  g3 {[%clk 0:00:38]}
55. Kxh5 {[%clk 0:00:06]}  g2 {[%clk 0:00:40]} 56. Rg7 {[%clk 0:00:07]}  Nxb2 {[%clk 0:00:40]} 57. Rxg2 {[%clk 0:00:08]}  Nd1 {[%clk 0:00:42]}
58. Re2+ {[%clk 0:00:08]}  Kf7 {[%clk 0:00:39]} 59. Rc2 {[%clk 0:00:09]}  a3 {[%clk 0:00:42]} 60. Rc1 {[%clk 0:00:10]}  Ne3 {[%clk 0:00:25]}
61. Ra1 {[%clk 0:00:11]}  Kf6 {[%clk 0:00:27]} 62. Rxa3 {[%clk 0:00:09]}  Ke5 {[%clk 0:00:29]} 63. Ra8 {[%clk 0:00:08]}  Ke4 {[%clk 0:00:29]}
64. Rd8 {[%clk 0:00:08]}  Nd5 {[%clk 0:00:29]} 65. Kg4 {[%clk 0:00:06]}  Nxc3 {[%clk 0:00:30]} 66. Kg3 {[%clk 0:00:07]}  Nd5 {[%clk 0:00:31]}
67. Kf2 {[%clk 0:00:08]}  Kd4 {[%clk 0:00:28]} 68. Ke2 {[%clk 0:00:09]}  Ke4 {[%clk 0:00:29]} 69. Kd2 {[%clk 0:00:09]}  Kd4 {[%clk 0:00:30]}
70. Rh8 {[%clk 0:00:10]}  c3+ {[%clk 0:00:31]} 71. Kc1 {[%clk 0:00:10]}  Ne3 {[%clk 0:00:31]} 72. Rd8+ {[%clk 0:00:10]}  Kc4 {[%clk 0:00:32]}
73. Rd7 {[%clk 0:00:11]}  Kb3 {[%clk 0:00:30]} 74. Rd3 {[%clk 0:00:11]}  Nc4 {[%clk 0:00:29]} 75. Rd7 {[%clk 0:00:08]}  Ne3 {[%clk 0:00:30]}
76. Re7 {[%clk 0:00:09]}  Nd5 {[%clk 0:00:30]} 77. Re4 {[%clk 0:00:09]}  Nb4 {[%clk 0:00:31]} 78. Re2 {[%clk 0:00:06]}  Nd3+ {[%clk 0:00:31]}
79. Kb1 {[%clk 0:00:05]}  Nb4 {[%clk 0:00:32]} 80. Re3 {[%clk 0:00:05]}  Nd5 {[%clk 0:00:32]} 81. Rh3 {[%clk 0:00:05]}  Nb4 {[%clk 0:00:34]}
82. Rg3 {[%clk 0:00:05]}  Nd5 {[%clk 0:00:35]} 83. Rxc3+ {[%clk 0:00:01]} 1/2-1/2

[Event "2026 Biel Blitz Open"]
[Site "Biel, CH"]
[Date "2026.07.19"]
[Round "8"]
[White "Stefan, Romulus-Cristian"]
[Black "Thorfinnsson, Bjorn"]
[Result "0-1"]
[Board "10"]
[TimeControl "180+2"]
[WhiteFideId "1232835"]
[BlackFideId "2300982"]
[WhiteElo "2048"]
[BlackElo "2396"]
[WhiteTitle "CM"]
[BlackTitle "IM"]
[WhiteClock "0:00:10"]
[BlackClock "0:03:02"]
[Variant "Standard"]
[EndDate "2026.07.19"]
[EndTime "14:25:48"]

1. d4 {[%clk 0:03:03]}  d5 {[%clk 0:03:03]} 2. Nf3 {[%clk 0:03:04]}  e6 {[%clk 0:03:04]} 3. c4 {[%clk 0:03:04]}  Nf6 {[%clk 0:03:05]}
4. Bg5 {[%clk 0:03:05]}  dxc4 {[%clk 0:03:01]} 5. Nc3 {[%clk 0:03:06]}  a6 {[%clk 0:02:54]} 6. a4 {[%clk 0:03:06]}  h6 {[%clk 0:02:44]}
7. Bxf6 {[%clk 0:03:03]}  Qxf6 {[%clk 0:02:44]} 8. e3 {[%clk 0:03:05]}  Nc6 {[%clk 0:02:29]} 9. Bxc4 {[%clk 0:03:05]}  Bb4 {[%clk 0:02:28]}
10. O-O {[%clk 0:03:05]}  O-O {[%clk 0:02:28]} 11. Ne4 {[%clk 0:02:58]}  Qe7 {[%clk 0:02:26]} 12. Qc2 {[%clk 0:02:36]}  b6 {[%clk 0:02:19]}
13. Be2 {[%clk 0:02:22]}  Bb7 {[%clk 0:02:18]} 14. Rac1 {[%clk 0:02:16]}  Rac8 {[%clk 0:02:17]} 15. Rfd1 {[%clk 0:02:11]}  Na5 {[%clk 0:02:13]}
16. Ned2 {[%clk 0:01:46]}  c5 {[%clk 0:02:03]} 17. dxc5 {[%clk 0:01:29]}  Rxc5 {[%clk 0:02:04]} 18. Qb1 {[%clk 0:01:24]}  Rfc8 {[%clk 0:01:50]}
19. Rxc5 {[%clk 0:01:23]}  Qxc5 {[%clk 0:01:51]} 20. Nd4 {[%clk 0:01:16]}  e5 {[%clk 0:01:09]} 21. Nf5 {[%clk 0:00:53]}  Kf8 {[%clk 0:00:42]}
22. Ne4 {[%clk 0:00:45]}  Qc2 {[%clk 0:00:40]} 23. Bf3 {[%clk 0:00:33]}  Qxb1 {[%clk 0:00:38]} 24. Rxb1 {[%clk 0:00:35]}  Rd8 {[%clk 0:00:23]}
25. h4 {[%clk 0:00:32]}  h5 {[%clk 0:00:22]} 26. Rc1 {[%clk 0:00:24]}  g6 {[%clk 0:00:22]} 27. Nfg3 {[%clk 0:00:21]}  Rc8 {[%clk 0:00:21]}
28. Rd1 {[%clk 0:00:11]}  Nc4 {[%clk 0:00:22]} 29. Rd7 {[%clk 0:00:05]}  Bc6 {[%clk 0:00:20]} 30. Ra7 {[%clk 0:00:06]}  Nxb2 {[%clk 0:00:13]}
31. Ng5 {[%clk 0:00:07]}  Be8 {[%clk 0:00:13]} 32. N3e4 {[%clk 0:00:06]}  Nxa4 {[%clk 0:00:11]} 33. Rxa6 {[%clk 0:00:07]}  Nc5 {[%clk 0:00:12]}
34. Ra7 {[%clk 0:00:07]}  Nxe4 {[%clk 0:00:12]} 35. Bxe4 {[%clk 0:00:08]}  Bc5 {[%clk 0:00:11]} 36. Bd5 {[%clk 0:00:09]}  b5 {[%clk 0:00:11]}
37. Bxf7 {[%clk 0:00:10]}  Bxa7 {[%clk 0:03:02]} 0-1